bitfinex/quotes_ETHUSD_20250822
["timestamp","ask_amount","ask_price","bid_price","bid_amount"]
[1755840381687,4.2106,4288.5,4288.4,1.004412]
[1755840381886,4.2106,4288.5,4288.4,0.701312]
[1755840382817,7.6754,4288.5,4288.4,0.701312]
[1755840383465,8.04043708,4288.5,4288.4,0.701312]
[1755840384070,8.04043708,4288.5,4287.8,0.021]
[1755840384376,8.04043708,4288.5,4287.9,0.701312]
[1755840386668,7.2106,4288.5,4287.9,0.701312]
[1755840387407,7.6771,4288.5,4287.9,0.701312]
[1755840388626,0.4665,4288.4,4287.9,0.701312]
[1755840388921,3.911,4288.3,4287.9,0.701312]
[1755840389983,4.27604876,4288.3,4287.9,0.701312]
[1755840392573,0.0047,4288.0,4287.9,0.701312]
[1755840392778,11.03586712,4288.0,4287.9,0.701312]
[1755840393112,11.03586712,4288.0,4287.8,0.021]
[1755840393113,3.0,4287.9,4287.8,0.021]
[1755840393280,3.0092,4287.9,4287.8,0.021]
[1755840393607,3.4666,4287.9,4287.8,0.021]
[1755840397482,3.0,4287.7,4287.4,0.001]
[1755840397688,9.96596712,4287.5,4287.4,0.001]
[1755840397898,39.96596712,4287.5,4287.4,0.001]
[1755840398180,40.42186712,4287.5,4287.4,0.001]
[1755840399295,40.78704963,4287.5,4287.4,0.001]
[1755840403111,0.36518251,4287.5,4287.4,0.3047]
[1755840403318,4.27718251,4287.5,4287.4,0.7693]
[1755840403513,7.27718251,4287.5,4287.4,0.7693]
[1755840404826,14.69894963,4287.5,4287.4,0.001]
[1755840406936,14.24664963,4287.5,4287.4,0.001]
[1755840408036,7.27718251,4287.5,4287.4,0.7693]
[1755840408844,6.912,4287.5,4287.4,0.7693]
[1755840410060,1.794,4287.6,4287.4,0.7693]
[1755840410256,1.794,4287.6,4287.4,0.4518883]
[1755840410257,3.913,4287.5,4287.4,0.4518883]
[1755840410428,6.913,4287.5,4287.4,0.4518883]
[1755840410827,6.913,4287.5,4287.4,0.7693]
[1755840411032,13.86766712,4287.5,4287.4,0.001]
[1755840411921,14.23281702,4287.5,4287.4,0.001]
[1755840412717,13.93641702,4287.5,4287.4,0.3047]
[1755840412921,3.3651499,4287.5,4287.4,0.7693]
[1755840413255,7.2781499,4287.5,4287.4,0.7693]
[1755840414566,7.2781499,4287.5,4287.4,0.3047]
[1755840415059,3.3651499,4287.5,4287.4,0.7693]
[1755840415221,7.2781499,4287.5,4287.4,0.001]
[1755840415427,7.2811499,4287.5,4287.4,0.001]
[1755840416248,13.57126712,4287.5,4287.4,0.3047]
[1755840417228,3.0,4287.5,4287.4,0.3047]
[1755840417433,6.915,4287.5,4287.4,0.7693]
[1755840419361,3.915,4287.5,4287.4,0.7693]
[1755840419548,4.28011993,4287.5,4287.4,0.7693]
[1755840419755,7.28011993,4287.5,4287.4,0.7693]
[1755840419952,7.28311993,4287.5,4287.4,0.001]
[1755840420158,7.28011993,4287.5,4287.4,0.001]
[1755840420353,3.36511993,4287.5,4287.4,0.7693]
[1755840420568,7.29011993,4287.5,4287.4,0.7693]
[1755840421635,7.29011993,4287.5,4287.4,0.3047]
[1755840422664,7.28911993,4287.5,4287.4,0.001]
[1755840423859,7.28911993,4287.5,4287.4,0.3047]
[1755840424271,7.58561993,4287.5,4287.4,0.001]
[1755840424650,7.58561993,4287.5,4287.4,0.3047]
[1755840424651,3.36511993,4287.5,4287.4,0.3047]
[1755840424870,7.29011993,4287.5,4287.4,0.7693]
[1755840425970,7.29011993,4287.5,4287.4,1.470794]
[1755840426273,6.925,4287.5,4287.4,1.470794]
[1755840427216,3.0,4287.5,4287.4,2.130794]
[1755840427382,6.927,4287.5,4287.4,2.130794]
[1755840427578,6.927,4287.5,4287.4,1.006194]
[1755840427777,6.927,4287.5,4287.4,0.702494]
[1755840428313,6.927,4287.5,4287.4,1.006194]
[1755840428516,6.927,4287.5,4287.4,0.3047]
[1755840429216,3.0,4287.5,4287.4,0.7368]
[1755840429422,6.929,4287.5,4287.4,0.7368]
[1755840429562,7.29312507,4287.5,4287.4,1.3968]
[1755840430665,7.29312507,4287.5,4287.4,2.098255]
[1755840431694,0.36512507,4287.5,4287.4,4.87385396]
[1755840434104,0.002,4287.8,4287.4,4.87385396]
[1755840434105,0.002,4287.8,4287.7,2.99225272]
[1755840434302,0.002,4287.8,4287.7,6.01557524]
[1755840434502,0.002,4287.8,4287.7,7.56002828]
[1755840434671,0.002,4287.8,4287.7,7.99212828]
[1755840436496,0.002,4287.8,4287.7,11.93012828]
[1755840437120,0.002,4287.8,4287.7,4.99212828]
[1755840439315,1e-08,4287.8,4287.7,5.10892828]
[1755840440317,1e-08,4287.8,4287.7,12.04492828]
[1755840440942,1e-08,4287.8,4287.7,12.13840228]
[1755840441242,0.002,4288.3,4288.2,2.99198078]
[1755840441414,0.002,4288.7,4288.6,2.99176327]
[1755840441614,0.002,4288.7,4288.6,3.3266809]
[1755840442147,0.002,4288.7,4288.6,4.1257229]
[1755840442521,0.002,4288.7,4288.6,4.10240527]
[1755840442945,0.002,4288.7,4288.6,8.04040527]
[1755840443165,0.002,4288.7,4288.6,9.07762946]
[1755840446667,0.002,4288.7,4288.6,4.70752946]
[1755840446843,0.002,4288.7,4288.6,8.64252946]
[1755840447045,0.002,4288.7,4288.6,9.07462946]
[1755840448969,0.002,4288.7,4288.6,9.07362946]
[1755840449534,0.002,4288.7,4288.6,8.64152946]
[1755840449738,0.002,4288.7,4288.6,8.32992946]
[1755840449966,0.3142,4288.7,4288.6,3.73592946]
[1755840450271,0.3142,4288.7,4288.6,3.75924709]
[1755840450457,0.3142,4288.7,4288.6,4.39592946]
[1755840453588,0.7441,4288.7,4288.6,2.06416619]
[1755840453782,0.7441,4288.7,4288.6,1.026942]
[1755840454507,0.3142,4288.7,4288.6,1.026942]
[1755840454706,0.7441,4288.7,4288.6,0.366942]
[1755840458654,0.7441,4288.7,4288.6,1.026942]
[1755840459632,1.10907166,4288.7,4288.6,1.026942]
[1755840461339,0.36697166,4288.7,4288.6,1.026942]
[1755840461668,0.36697166,4288.7,4288.6,3.35870527]
[1755840461968,0.36697166,4288.7,4288.6,4.22479422]
[1755840462170,0.36697166,4288.7,4288.6,4.68311185]
[1755840462376,0.36697166,4288.7,4288.6,4.65979422]
[1755840462969,0.002,4288.7,4288.6,4.65979422]
[1755840467458,0.002,4288.7,4288.6,8.58979422]
[1755840468783,0.002,4288.7,4288.6,4.65979422]
[1755840468949,0.002,4288.7,4288.6,8.58979422]
[1755840471179,0.002,4288.7,4288.6,4.65979422]
[1755840471373,0.002,4288.7,4288.6,8.58679422]
[1755840473574,0.002,4288.7,4288.6,11.58679422]
[1755840475654,0.002,4288.7,4288.6,11.15179422]
[1755840476103,0.002,4288.7,4288.6,11.58679422]
[1755840485221,0.29,4288.7,4288.6,6.93009422]
[1755840485532,0.002,4288.7,4288.6,6.93009422]
[1755840485818,0.002,4288.7,4288.6,10.84909422]
[1755840487347,0.002,4288.7,4288.6,11.14379422]
[1755840490354,1e-08,4288.7,4288.6,11.60549422]
[1755840490652,0.002,4289.3,4288.6,11.60549422]
[1755840490653,0.002,4289.3,4288.8,0.66]
[1755840490852,1e-08,4289.3,4289.2,9.95671456]
[1755840491160,1e-08,4289.3,4289.2,18.66771456]
[1755840491358,1e-08,4289.3,4289.2,19.12941456]
[1755840491557,1e-08,4289.3,4289.2,19.22286356]
[1755840491769,1e-08,4289.3,4289.2,21.58500319]
[1755840493968,1e-08,4289.3,4289.2,17.66700319]
[1755840494169,1e-08,4289.3,4289.2,21.58500319]
[1755840496662,1e-08,4289.3,4289.2,16.90800319]
[1755840496870,1e-08,4289.3,4289.2,21.12130319]
[1755840497573,0.30490001,4289.3,4289.2,10.24002572]
[1755840497738,0.76350001,4289.3,4289.2,9.58002572]
[1755840497938,0.76350001,4289.3,4289.2,6.58002572]
[1755840498242,0.76350001,4289.3,4289.2,8.79388609]
[1755840500552,0.30490001,4289.3,4289.2,8.79388609]
[1755840500846,0.76350001,4289.3,4289.2,8.79388609]
[1755840501865,0.76350001,4289.3,4289.2,3.08488609]
[1755840502060,0.76350001,4289.3,4289.2,6.99988609]
[1755840502492,1.12838739,4289.3,4289.2,6.99988609]
[1755840503772,1.12838739,4289.3,4289.2,0.753449]
[1755840504169,0.66978739,4289.3,4289.2,3.08488609]
[1755840504401,0.66978739,4289.3,4289.2,3.10820046]
[1755840504767,1.12988739,4289.3,4289.2,7.02220046]
[1755840504968,1.12988739,4289.3,4289.2,6.99888609]
[1755840505582,0.66978739,4289.3,4289.2,6.99888609]
[1755840506908,0.66978739,4289.3,4289.2,3.08488609]
[1755840507114,0.66978739,4289.3,4289.2,7.02120046]
[1755840507314,0.66978739,4289.3,4289.2,6.99788609]
[1755840507881,0.30490001,4289.3,4289.2,6.99788609]
[1755840508618,1e-08,4289.3,4289.2,7.93082836]
[1755840509120,0.30650001,4289.3,4289.2,7.93082836]
[1755840515329,1e-08,4289.3,4289.2,7.93082836]
[1755840517930,0.00310001,4289.3,4289.2,0.093449]
[1755840518227,0.45850001,4289.3,4289.2,0.093449]
[1755840518830,0.45850001,4289.3,4289.2,0.753449]
[1755840519817,0.82342139,4289.3,4289.2,0.753449]
[1755840522135,0.36802139,4289.3,4289.2,0.753449]
[1755840522514,0.82342139,4289.3,4289.2,0.753449]
[1755840524404,0.36802139,4289.3,4289.2,0.753449]
[1755840525618,0.82342139,4289.3,4289.2,0.753449]
[1755840526620,1.05792139,4289.3,4289.2,0.753449]
[1755840527027,0.30802139,4289.3,4289.2,1.052949]
[1755840527231,0.002,4289.6,4289.3,0.66]
[1755840527442,0.002,4289.6,4289.4,0.02331328]
[1755840528028,0.002,4289.6,4289.5,1.4246]
[1755840528241,0.002,4289.6,4289.5,7.66987404]
[1755840528422,0.002,4289.6,4289.5,9.36045146]
[1755840528912,0.002,4289.6,4289.5,9.45390946]
[1755840543162,0.002,4289.6,4289.5,4.77530946]
[1755840543363,0.7519,4289.6,4289.5,6.33773204]
[1755840543746,0.2965,4289.6,4289.5,6.33773204]
[1755840544138,0.2965,4289.6,4289.5,6.99773204]
[1755840545657,0.2965,4289.6,4289.5,3.08473204]
[1755840545862,0.2965,4289.6,4289.5,6.99673204]
[1755840546180,0.2965,4289.6,4289.5,8.54811331]
[1755840546377,0.2965,4289.6,4289.5,4.63611331]
[1755840546570,0.2965,4289.6,4289.5,8.54811331]
[1755840546875,0.2965,4289.6,4289.5,4.63611331]
[1755840547083,0.2965,4289.6,4289.5,8.54811331]
[1755840547284,0.2965,4289.6,4289.5,4.63611331]
[1755840547583,0.2965,4289.6,4289.5,8.54811331]
[1755840555285,0.002,4289.6,4289.5,8.54811331]
[1755840559169,0.017,4289.6,4289.5,4.63611331]
[1755840559379,0.468,4289.6,4289.5,7.17422089]
[1755840560313,0.468,4289.6,4289.5,3.26222089]
[1755840560522,0.468,4289.6,4289.5,0.093458]
[1755840565607,4.38,4289.6,4289.5,0.093458]
[1755840566830,6.173,4289.6,4289.5,0.093458]
[1755840568425,5.707,4289.6,4289.5,1.048158]
[1755840568741,0.002,4289.6,4289.5,4.23656986]
[1755840569145,0.002,4289.6,4289.5,1.90529582]
[1755840569319,0.002,4289.6,4289.5,3.85133204]
[1755840569517,0.002,4289.6,4289.5,1.54337074]
[1755840570335,0.002,4289.6,4289.5,3.87464478]
[1755840570530,0.002,4289.6,4289.5,3.85133204]
[1755840570720,0.002,4289.6,4289.5,4.46969976]
[1755840571521,0.002,4289.6,4289.5,3.99779976]
[1755840571725,0.002,4289.6,4289.5,3.37943204]
[1755840571924,0.65708015,4289.6,4289.5,0.753458]
[1755840572146,1.11698015,4289.6,4289.5,0.753458]
[1755840573125,0.65708015,4289.6,4289.5,0.753458]
[1755840573322,0.36688015,4289.6,4289.5,0.753458]
[1755840573848,4.27888015,4289.6,4289.5,0.753458]
[1755840574533,4.27888015,4289.6,4289.5,1.048158]
[1755840574737,0.36688015,4289.6,4289.5,1.048158]
[1755840577459,0.36688015,4289.6,4289.5,3.37943204]
[1755840578496,0.36688015,4289.6,4289.5,1.048158]
[1755840579962,0.36688015,4289.6,4289.5,3.37943204]
[1755840582078,0.36688015,4289.6,4289.5,3.84403204]
[1755840582079,0.002,4289.6,4289.5,3.84403204]
[1755840582511,0.002,4289.6,4289.5,3.37943204]
[1755840583904,0.002,4289.6,4289.5,4.46400464]
[1755840584415,0.002,4289.6,4289.5,8.37600464]
[1755840590108,0.002,4289.6,4289.5,4.46400464]
[1755840590409,0.002,4289.6,4289.5,3.33940464]
[1755840590616,0.2908,4289.6,4289.5,0.093458]
[1755840590779,1.10906563,4289.6,4289.5,0.093458]
[1755840591603,1.10906563,4289.6,4289.5,0.753458]
[1755840592693,0.65566563,4289.6,4289.5,0.753458]
[1755840594226,0.36686563,4289.6,4289.5,0.77677074]
[1755840594802,0.36686563,4289.6,4289.5,0.753458]
[1755840595033,0.36686563,4289.6,4289.5,0.77677074]
[1755840595535,0.65566563,4289.6,4289.5,0.753458]
[1755840595736,0.2908,4289.6,4289.5,0.753458]
[1755840597728,0.2908,4289.6,4289.5,3.08473204]
[1755840598230,0.002,4289.6,4289.5,3.08473204]
[1755840598522,0.002,4289.6,4289.5,3.10804478]
[1755840598734,0.36688366,4289.6,4289.5,3.10804478]
[1755840599408,0.36688366,4289.6,4289.5,0.753458]
[1755840599609,0.36688366,4289.6,4289.5,0.77677074]
[1755840600146,0.36688366,4289.6,4289.5,3.10804478]
[1755840600443,0.36688366,4289.6,4289.5,4.47515226]
[1755840600610,0.36688366,4289.6,4289.5,8.38615226]
[1755840600811,0.36688366,4289.6,4289.5,8.36283952]
[1755840601327,0.002,4289.7,4289.6,5.99121969]
[1755840601533,0.002,4290.1,4290.0,2.99100233]
[1755840601754,0.002,4290.1,4290.0,7.76951997]
[1755840602058,0.002,4290.1,4290.0,8.21080995]
[1755840602250,0.002,4290.1,4290.0,8.57565695]
[1755840607834,0.2908,4290.1,4290.0,7.79905695]
[1755840608063,0.2908,4290.1,4290.0,7.26684933]
[1755840608270,0.2908,4290.1,4290.0,3.35584933]
[1755840608480,0.2908,4290.1,4290.0,0.364847]
[1755840608631,0.725,4290.1,4290.0,0.364847]
[1755840609651,1.08987676,4290.1,4290.0,0.364847]
[1755840610438,9.55085423,4290.1,4290.0,0.364847]
[1755840614646,3.0,4290.0,4288.9,0.001]
[1755840614873,9.96137747,4289.4,4288.9,0.001]
[1755840615068,13.87237747,4289.4,4288.9,0.001]
[1755840615268,13.87237747,4289.4,4289.2,0.093499]
[1755840615475,14.30657747,4289.4,4289.2,0.093499]
[1755840615641,14.6715635,4289.4,4289.2,0.093499]
[1755840621751,5.45238603,4289.4,4289.2,0.093499]
[1755840621947,6.07298603,4289.4,4289.2,0.093499]
[1755840622153,2.15898603,4289.4,4289.3,1.4005]
[1755840622392,6.07298603,4289.4,4289.3,1.78305075]
[1755840622588,6.07298603,4289.4,4289.3,1.4005]
[1755840623258,6.07398603,4289.4,4289.3,1.4005]
[1755840623484,6.07398603,4289.4,4289.3,3.75519656]
[1755840623705,5.709,4289.4,4289.3,3.75519656]
[1755840623981,5.709,4289.4,4289.3,3.73188274]
[1755840624990,1.794,4289.4,4289.3,3.73188274]
[1755840625289,1.794,4289.4,4289.3,4.34990003]
[1755840625488,1.794,4289.4,4289.3,2.01851729]
[1755840625701,1.794,4289.4,4289.3,4.34990003]
[1755840625987,1.794,4289.4,4289.3,2.01851729]
[1755840626198,1.794,4289.4,4289.3,1.4005]
[1755840627114,1.794,4289.4,4289.3,3.73188274]
[1755840628397,3.915,4289.5,4289.3,3.73188274]
[1755840628398,0.002,4290.1,4289.4,0.66]
[1755840628601,0.002,4290.1,4290.0,3.27870233]
[1755840628900,0.002,4290.1,4290.0,3.30201235]
[1755840629064,0.002,4290.1,4290.0,3.75381235]
[1755840629786,0.002,4290.1,4290.0,3.84727135]
[1755840630561,0.002,4290.1,4290.0,3.82396133]
[1755840630760,0.002,4290.1,4290.0,4.43946496]
[1755840634186,0.002,4290.1,4290.0,4.46277498]
[1755840634607,0.002,4290.1,4290.0,7.46277498]
[1755840634792,0.002,4290.1,4290.0,7.43946496]
[1755840636574,1e-08,4290.2,4290.1,5.99094799]
[1755840636775,1e-08,4290.2,4290.1,8.09880198]
[1755840639877,1e-08,4290.2,4290.1,8.19222998]
[1755840642818,1e-08,4290.2,4290.1,8.30902998]
[1755840643126,1e-08,4290.2,4290.1,8.19222998]
[1755840644320,1e-08,4290.2,4290.1,12.10222998]
[1755840645343,1e-08,4290.2,4290.1,16.39222998]
[1755840648014,1e-08,4290.7,4290.3,3.66]
[1755840648214,1e-08,4290.7,4290.6,12.96505383]
[1755840648439,1e-08,4290.7,4290.6,30.72420883]
[1755840648806,1e-08,4290.7,4290.6,31.24812383]
[1755840649008,0.002,4291.1,4290.9,2.99051341]
[1755840649209,0.002,4291.1,4290.9,12.59235817]
[1755840649440,0.002,4291.1,4290.9,12.56905304]
[1755840649625,1e-08,4291.0,4290.9,12.99955304]
[1755840649828,1e-08,4291.0,4290.9,22.47066204]
[1755840650142,0.002,4291.1,4290.9,22.47066204]
[1755840650143,1e-08,4291.1,4291.0,5.9904591]
[1755840650305,1e-08,4291.1,4291.0,20.0474762]
[1755840650931,1e-08,4291.1,4291.0,20.1408812]
[1755840653150,1e-08,4291.1,4291.0,13.04240373]
[1755840653335,1e-08,4291.1,4291.0,16.64500373]
[1755840653812,0.29590001,4291.1,4291.0,12.73600373]
[1755840654141,1e-08,4291.1,4291.0,16.64500373]
[1755840654330,0.022,4291.8,4291.6,2.99013328]
[1755840654636,0.30960001,4291.7,4291.6,7.43116707]
[1755840654941,0.76040001,4291.7,4291.6,7.43116707]
[1755840655238,0.30960001,4291.7,4291.6,7.74076707]
[1755840658318,0.30960001,4291.7,4291.6,3.29973328]
[1755840658524,0.30960001,4291.7,4291.6,7.20873328]
[1755840659031,0.30960001,4291.7,4291.6,0.3096]
[1755840659626,0.30960001,4291.7,4291.6,0.9696]
[1755840661376,0.31420001,4291.7,4291.6,0.9696]
[1755840662130,0.30960001,4291.7,4291.6,3.32303461]
[1755840662469,0.36471656,4291.7,4291.6,7.62051146]
[1755840662617,0.36471656,4291.7,4291.6,8.33411013]
[1755840663034,0.36471656,4291.7,4291.6,7.90361013]
[1755840663035,1e-08,4291.7,4291.6,7.90361013]
[1755840663460,1e-08,4291.7,4291.6,8.33411013]
[1755840668153,1e-08,4291.7,4291.6,3.99461013]
[1755840668356,1e-08,4291.7,4291.6,8.34421013]
[1755840668937,1e-08,4291.7,4291.6,7.90361013]
[1755840669259,1e-08,4291.7,4291.6,8.34421013]
[1755840670461,1e-08,4291.7,4291.6,3.99461013]
[1755840670663,1e-08,4291.7,4291.6,7.59721013]
[1755840670962,1e-08,4291.7,4291.6,7.91031013]
[1755840671165,1e-08,4291.7,4291.6,8.35091013]
[1755840671587,1e-08,4291.7,4291.6,4.00131013]
[1755840671762,1e-08,4291.7,4291.6,7.91031013]
[1755840671938,1e-08,4291.7,4291.6,8.35091013]
[1755840674470,1e-08,4291.7,4291.6,4.44191013]
[1755840674681,1e-08,4291.7,4291.6,8.35091013]
[1755840677153,1e-08,4291.7,4291.6,4.00131013]
[1755840677357,1e-08,4291.7,4291.6,7.90931013]
[1755840678064,1e-08,4291.7,4291.6,7.59621013]
[1755840678271,1e-08,4291.7,4291.6,7.90931013]
[1755840678438,1e-08,4291.7,4291.6,8.34991013]
[1755840682852,1e-08,4291.7,4291.6,7.90931013]
[1755840683046,1e-08,4291.7,4291.6,8.34991013]
[1755840684755,0.30180001,4291.7,4291.6,7.59621013]
[1755840684943,1e-08,4291.7,4291.6,7.59621013]
[1755840685139,0.002,4291.9,4291.8,2.99002469]
[1755840685339,0.3053,4291.9,4291.8,6.89802469]
[1755840685544,0.3053,4291.9,4291.8,7.89064274]
[1755840686557,0.002,4291.9,4291.8,7.89064274]
[1755840686771,0.3038,4291.9,4291.8,7.89064274]
[1755840689391,0.002,4291.9,4291.8,7.89064274]
[1755840691854,0.002,4291.9,4291.8,3.98264274]
[1755840692081,0.4592,4291.9,4291.8,2.99002469]
[1755840692281,0.4592,4291.9,4291.8,6.89802469]
[1755840692863,0.0051,4291.9,4291.8,6.89802469]
[1755840693284,0.002,4291.9,4291.8,7.65172469]
[1755840694085,0.002,4291.9,4291.8,2.99002469]
[1755840694086,0.0066,4291.9,4291.8,2.99002469]
[1755840694269,0.0066,4291.9,4291.8,7.47609506]
[1755840694456,0.002,4291.9,4291.8,7.78919506]
[1755840695073,0.002,4291.9,4291.8,7.47609506]
[1755840695702,0.002,4291.9,4291.8,7.78919506]
[1755840696701,0.002,4291.9,4291.8,11.22979506]
[1755840696885,0.002,4292.2,4292.1,2.98986183]
[1755840697095,0.002,4292.2,4292.1,8.29021695]
[1755840697395,0.002,4292.2,4292.1,8.70751834]
[1755840697775,0.002,4292.2,4292.1,8.80091134]
[1755840697972,0.002,4292.2,4292.1,11.80091134]
[1755840698301,0.002,4292.2,4292.1,18.46888881]
[1755840700378,0.002,4292.2,4292.1,20.92988881]
[1755840700567,0.002,4292.2,4292.1,18.46888881]
[1755840700768,0.002,4292.4,4292.2,5.98980755]
[1755840700968,0.002,4292.4,4292.3,9.58939043]
[1755840701270,1e-08,4292.6,4292.5,2.98964472]
[1755840701473,1e-08,4292.6,4292.5,16.89511863]
[1755840701776,1e-08,4292.6,4292.5,17.30012219]
[1755840702388,1e-08,4292.6,4292.5,17.77072219]
[1755840702588,1e-08,4292.6,4292.5,20.13286182]
[1755840703792,1e-08,4292.6,4292.5,13.46488435]
[1755840706891,0.002,4293.1,4292.7,5.98953618]
[1755840707072,0.002,4293.1,4292.7,10.20273618]
[1755840707396,0.002,4293.1,4292.7,10.63103618]
[1755840707577,0.002,4293.1,4292.7,13.31239598]
[1755840708173,1e-08,4292.8,4292.7,13.31239598]
[1755840708974,1e-08,4292.8,4292.7,13.42919598]
[1755840709898,1e-08,4292.8,4292.7,23.39758798]
[1755840710506,1e-08,4292.8,4292.7,25.49435098]
[1755840710701,1e-08,4293.1,4293.0,2.98937339]
[1755840711000,1e-08,4293.1,4293.0,21.04798422]
[1755840711167,1e-08,4293.1,4293.0,21.45299049]
[1755840711373,1e-08,4293.1,4293.0,21.54635149]
[1755840711789,1e-08,4293.1,4293.0,21.66315149]
[1755840713783,1e-08,4293.1,4293.0,25.95315149]
[1755840714389,1e-08,4293.1,4293.0,18.85587402]
[1755840714610,1e-08,4293.1,4293.0,19.28417402]
[1755840717918,0.02,4294.8,4293.7,2.32899364]
[1755840718083,0.4706,4294.5,4293.7,14.417893]
[1755840719285,0.4706,4294.5,4293.7,15.194693]
[1755840719611,0.002,4294.0,4293.7,15.194693]
[1755840720820,0.002,4294.0,4293.7,15.622993]
[1755840721792,0.002,4294.0,4293.7,12.622993]
[1755840722604,0.002,4294.0,4293.7,15.622993]
[1755840722785,1e-08,4293.8,4293.7,18.078993]
[1755840725530,0.29150001,4293.8,4293.7,10.982493]
[1755840725696,0.76030001,4293.8,4293.7,13.99559364]
[1755840726022,0.76030001,4293.8,4293.7,10.99559364]
[1755840726023,0.46880001,4293.8,4293.7,10.99559364]
[1755840727010,1e-08,4293.8,4293.7,10.99559364]
[1755840727210,1e-08,4293.8,4293.7,11.65559364]
[1755840728628,1e-08,4293.8,4293.7,7.36559364]
[1755840728828,1e-08,4293.8,4293.7,8.33505937]
[1755840730536,0.002,4294.0,4293.9,2.98888516]
[1755840730839,0.002,4294.0,4293.9,13.87845148]
[1755840731035,0.002,4294.0,4293.9,15.64616263]
[1755840731233,0.002,4294.0,4293.9,16.46094463]
[1755840731536,0.002,4294.0,4293.9,18.43688503]
[1755840731709,0.002,4294.0,4293.9,21.43688503]
[1755840733939,3.925,4296.8,4293.9,21.43688503]
[1755840733940,0.2002,4295.8,4294.7,5.98845134]
[1755840734243,0.36441954,4295.7,4294.7,10.18675134]
[1755840734452,0.36441954,4295.7,4294.7,11.97775134]
[1755840734616,0.36441954,4295.7,4294.7,14.79019097]
[1755840734813,0.1802,4295.5,4294.7,14.04659097]
[1755840735031,0.0218,4294.8,4294.7,14.41101097]
[1755840735547,0.0218,4294.8,4294.7,7.50601097]
[1755840735751,0.2002,4294.8,4294.7,9.04887134]
[1755840736048,0.0218,4294.8,4294.7,9.04887134]
[1755840736347,0.02,4294.8,4294.7,9.04887134]
[1755840736555,0.02,4294.8,4294.7,9.34217134]
[1755840736920,0.02,4294.8,4294.7,9.04887134]
[1755840737121,0.02,4294.8,4294.7,11.3274324]
[1755840738150,0.02,4294.8,4294.7,12.0710324]
[1755840738844,0.02,4294.8,4294.7,11.6207324]
[1755840739004,0.02,4294.8,4294.7,15.9107324]
[1755840739715,0.02,4294.8,4294.7,16.3610324]
[1755840740708,0.02,4294.8,4294.7,19.3610324]
[1755840741046,0.02,4294.8,4294.7,15.4560324]
[1755840741244,0.02,4294.8,4294.7,19.3610324]
[1755840741684,0.36638346,4295.7,4295.6,2.98796349]
[1755840741811,0.46538346,4295.7,4295.6,6.89296349]
[1755840742947,0.46538346,4295.7,4295.6,7.35834749]
[1755840744411,0.83618346,4295.7,4295.6,7.35834749]
[1755840744612,0.83618346,4295.7,4295.6,6.69834749]
[1755840745213,0.83618346,4295.7,4295.6,7.35834749]
[1755840746162,0.46538346,4295.7,4295.6,3.45334749]
[1755840746564,0.83888346,4295.7,4295.6,3.45334749]
[1755840747571,0.46538346,4295.7,4295.6,3.45334749]
[1755840747772,0.46538346,4295.7,4295.6,4.4219892]
[1755840748070,0.46538346,4295.7,4295.6,8.3269892]
[1755840749271,0.83888346,4295.7,4295.6,5.029384]
[1755840749442,0.83888346,4295.7,4295.6,7.35734749]
[1755840750072,0.83888346,4295.7,4295.6,5.029384]
[1755840750267,0.83888346,4295.7,4295.6,7.35734749]
[1755840750576,0.46538346,4295.7,4295.6,7.35734749]
[1755840758160,0.36638346,4295.7,4295.6,8.00136813]
[1755840758364,0.46538346,4295.7,4295.6,7.70396813]
[1755840758686,0.46538346,4295.7,4295.6,7.35734749]
[1755840760678,0.36638346,4295.7,4295.6,7.35734749]
[1755840760880,0.46808346,4295.7,4295.6,3.45334749]
[1755840761065,0.46808346,4295.7,4295.6,7.35734749]
[1755840761460,0.46808346,4295.7,4295.6,5.029384]
[1755840761659,0.83348346,4295.7,4295.6,7.35734749]
[1755840761856,0.46808346,4295.7,4295.6,7.35734749]
[1755840762380,0.46268346,4295.7,4295.6,7.35734749]
[1755840762949,0.36638346,4295.7,4295.6,7.35734749]
[1755840763270,0.36638346,4295.7,4295.6,8.32588812]
[1755840763271,0.46268346,4295.7,4295.6,8.32588812]
[1755840763471,0.46268346,4295.7,4295.6,7.35734749]
[1755840765375,0.36638346,4295.7,4295.6,7.35734749]
[1755840766587,0.37008346,4295.7,4295.6,7.35734749]
[1755840769385,0.37008346,4295.7,4295.6,3.45334749]
[1755840769779,0.36638346,4295.7,4295.6,4.20394749]
[1755840770084,0.37008346,4295.7,4295.6,4.49694934]
[1755840770390,0.37008346,4295.7,4295.6,7.35734749]
[1755840773100,0.74358346,4295.7,4295.6,0.465384]
[1755840773468,10.41156093,4295.7,4295.6,0.465384]
[1755840775593,10.04717747,4295.7,4295.6,0.465384]
[1755840777613,3.0057,4295.7,4295.6,0.465384]
[1755840778015,0.002,4295.7,4295.6,3.75074749]
[1755840778226,0.002,4295.7,4295.6,4.85714908]
[1755840780898,0.2926,4295.7,4295.6,8.01054908]
[1755840781097,0.2926,4295.7,4295.6,0.465384]
[1755840781427,0.65696958,4295.7,4295.6,0.465384]
[1755840782091,3.65696958,4295.7,4295.6,0.465384]
[1755840784007,0.65696958,4295.7,4295.6,0.465384]
[1755840784927,0.002,4295.7,4295.6,0.465384]
[1755840786421,0.002,4295.7,4295.6,3.45334749]
[1755840786728,0.002,4295.7,4295.6,4.07680818]
[1755840789009,0.36635083,4295.7,4295.6,4.07680818]
[1755840795540,0.36635083,4295.7,4295.6,0.465384]
[1755840795832,0.36635083,4295.7,4295.6,1.125384]
[1755840796412,0.36635083,4295.7,4295.6,3.45334749]
[1755840796612,0.36635083,4295.7,4295.6,1.125384]
[1755840796815,0.36635083,4295.7,4295.6,3.45334749]
[1755840797330,0.36635083,4295.7,4295.6,1.125384]
[1755840797836,0.36635083,4295.7,4295.6,3.45334749]
[1755840799316,0.36635083,4295.7,4295.6,4.4223863]
[1755840799921,0.36635083,4295.7,4295.6,1.125384]
[1755840801442,0.36635083,4295.7,4295.6,3.45334749]
[1755840805950,0.36635083,4295.7,4295.6,7.35834749]